Workbook

Sheet 汇总表
A1: 2019度第二轮存量房拍卖房源汇总
A2: 序号 | B2: 项目 | C2: 幢号 | D2: 室号 | E2: 房屋面积（㎡） | F2: 自行车库 | H2: 汽车库 | J2: 阁楼 | K2: 住宅类型 | L2: 合计总价（元） | M2: 总价
F3: 编号 | G3: 面积 | H3: 编号 | I3: 面积
A4: 1 | B4: 百盛花园南区 | C4: 20 | D4: 201 | E4: 142.54 | H4: 18-25 | I4: 23.05 | K4: 住宅 | L4: 2123131 | M4: =L4*90% -> 1910817.9
A5: 2 | B5: 百盛花园南区 | C5: 20 | D5: 202 | E5: 142.54 | H5: 18-28 | I5: 23.05 | K5: 住宅 | L5: 2082222 | M5: =L5*90% -> 1873999.8
A6: 3 | B6: 百盛花园南区 | C6: 20 | D6: 203 | E6: 142.54 | H6: 18-31 | I6: 23.05 | K6: 住宅 | L6: 2082222 | M6: 1873999.8
A7: 4 | B7: 百盛花园南区 | C7: 20 | D7: 204 | E7: 142.45 | H7: 18-34 | I7: 23.05 | K7: 住宅 | L7: 2080958 | M7: 1872862.2
A8: 5 | B8: 百盛花园南区 | C8: 20 | D8: 401 | E8: 142.54 | H8: 17-15 | I8: 23.02 | K8: 住宅 | L8: 2153672 | M8: 1938304.8
A9: 6 | B9: 百盛花园南区 | C9: 20 | D9: 402 | E9: 142.54 | H9: 17-18 | I9: 23.02 | K9: 住宅 | L9: 2112763 | M9: 1901486.7
A10: 7 | B10: 百盛花园南区 | C10: 20 | D10: 501 | E10: 142.54 | F10: 18-26 | G10: 14.67 | J10: 65.47 | K10: 住宅 | L10: 2360587 | M10: 2124528.3
A11: 8 | B11: 百盛花园南区 | C11: 20 | D11: 502 | E11: 142.54 | F11: 18-27 | G11: 14.67 | J11: 76.9 | K11: 住宅 | L11: 2362202 | M11: 2125981.8
A12: 9 | B12: 百盛花园南区 | C12: 20 | D12: 504 | E12: 142.45 | F12: 18-33 | G12: 14.67 | J12: 76.9 | K12: 住宅 | L12: 2360938 | M12: 2124844.2
A13: 10 | B13: 百盛花园南区 | C13: 5 | D13: 507 | E13: 78.75 | F13: 37 | G13: 18.96 | K13: 住宅 | L13: 1214633 | M13: 1093169.7
A14: 11 | B14: 百盛花园南区 | C14: 20 | D14: 205 | E14: 142.45 | H14: 18-37 | I14: 23.05 | K14: 住宅 | L14: 2120844 | M14: 1908759.6
A15: 12 | B15: 百盛花园南区 | C15: 20 | D15: 206 | E15: 142.54 | H15: 18-40 | I15: 23.05 | K15: 住宅 | L15: 2150641 | M15: 1935576.9
A16: 13 | B16: 百盛花园南区 | C16: 20 | D16: 303 | E16: 142.54 | H16: 13 | I16: 22.39 | K16: 住宅 | L16: 2162585 | M16: 1946326.5
A17: 14 | B17: 百盛花园南区 | C17: 20 | D17: 304 | E17: 142.45 | H17: 14 | I17: 22.39 | K17: 住宅 | L17: 2161269 | M17: 1945142.1
A18: 15 | B18: 百盛花园南区 | C18: 20 | D18: 403 | E18: 142.54 | H18: 17-19 | I18: 26.1 | K18: 住宅 | L18: 2132808 | M18: 1919527.2
A19: 16 | B19: 百盛花园南区 | C19: 20 | D19: 406 | E19: 142.54 | H19: 17-24 | I19: 23.02 | K19: 住宅 | L19: 2150536 | M19: 1935482.4
A20: 17 | B20: 百盛花园南区 | C20: 20 | D20: 505 | E20: 142.45 | F20: 18-38 | G20: 14.67 | J20: 76.9 | K20: 住宅 | L20: 2573255 | M20: 2315929.5
A21: 18 | B21: 百盛花园南区 | C21: 20 | D21: 506 | E21: 142.54 | F21: 18-39 | G21: 14.67 | J21: 65.47 | K21: 住宅 | L21: 2546964 | M21: 2292267.6
A22: 19 | B22: 百盛花园二区 | C22: 15 | D22: 705 | E22: 217.63 | F22: 36 | G22: 8.77 | K22: 跃层住宅 | L22: 3200629 | M22: 2880566.1
A23: 20 | B23: 百盛花园二区 | C23: 15 | D23: 1103 | E23: 190.94 | F23: 28 | G23: 12.66 | K23: 跃层住宅 | L23: 2736888 | M23: 2463199.2
A24: 21 | B24: 百盛花园二区 | C24: 15 | D24: 1105 | E24: 190.94 | F24: 40 | G24: 12.66 | K24: 跃层住宅 | L24: 2736888 | M24: 2463199.2
A25: 22 | B25: 百盛花园二区 | C25: 27 | D25: 701 | E25: 217.63 | F25: 3 | G25: 20.26 | K25: 跃层住宅 | L25: 3292902 | M25: 2963611.8
A26: 23 | B26: 百盛花园二区 | C26: 27 | D26: 705 | E26: 217.63 | F26: 37 | G26: 20.26 | K26: 跃层住宅 | L26: 3229354 | M26: 2906418.6
A27: 24 | B27: 百盛花园二区 | C27: 27 | D27: 901 | E27: 217.63 | F27: 6 | G27: 12.89 | K27: 跃层住宅 | L27: 3306251 | M27: 2975625.9
A28: 25 | B28: 百盛花园二区 | C28: 27 | D28: 1101 | E28: 190.94 | F28: 7 | G28: 12.66 | K28: 跃层住宅 | L28: 2792642 | M28: 2513377.8
A29: 26 | B29: 百盛花园二区 | C29: 27 | D29: 1105 | E29: 190.94 | F29: 40 | G29: 12.66 | K29: 跃层住宅 | L29: 2705765 | M29: 2435188.5
A30: 27 | B30: 百盛花园二区 | C30: 27 | D30: 1106 | E30: 201.44 | F30: 47 | G30: 20.26 | K30: 跃层住宅 | L30: 2891961 | M30: 2602764.9
A31: 28 | B31: 百盛花园二区 | C31: 28 | D31: 703 | E31: 217.35 | F31: 18 | G31: 12.88 | K31: 跃层住宅 | L31: 3163127 | M31: 2846814.3
A32: 29 | B32: 百盛花园二区 | C32: 28 | D32: 901 | E32: 217.35 | F32: 12 | G32: 12.65 | K32: 跃层住宅 | L32: 3162552 | M32: 2846296.8
A33: 30 | B33: 百盛花园二区 | C33: 28 | D33: 903 | E33: 217.35 | F33: 21 | G33: 20.23 | K33: 跃层住宅 | L33: 3138032 | M33: 2824228.8
A34: 31 | B34: 百盛花园二区 | C34: 28 | D34: 1101 | E34: 190.7 | F34: 11 | G34: 12.88 | K34: 跃层住宅 | L34: 2741094 | M34: 2466984.6
A35: 32 | B35: 百盛花园二区 | C35: 28 | D35: 1102 | E35: 201.18 | F35: 3 | G35: 20.23 | K35: 跃层住宅 | L35: 2868101 | M35: 2581290.9
A36: 33 | B36: 百盛花园二区 | C36: 28 | D36: 1103 | E36: 190.7 | F36: 23 | G36: 12.65 | K36: 跃层住宅 | L36: 2702379 | M36: 2432141.1
A37: 34 | B37: 莲花新村 | C37: 24 | D37: 706 | E37: 92.37 | F37: 33 | G37: 11.15 | J37: 11.52 | K37: 住宅 | L37: 1531096 | M37: =L37*90% -> 1377986.4
A38: 35 | B38: 莲花新村 | C38: 2 | D38: 706 | E38: 119.07 | F38: 36 | G38: 14.91 | J38: 40.83 | K38: 住宅 | L38: 2097272 | M38: 1887544.8
A39: 36 | B39: 莲花新村 | C39: 2 | D39: 505 | E39: 122.2 | F39: 31 | G39: 14.91 | K39: 住宅 | L39: 1832026 | M39: 1648823.4
A40: 37 | B40: 莲花新村 | C40: 2 | D40: 601 | E40: 122.2 | F40: 20 | G40: 16.26 | K40: 住宅 | L40: 1957601 | M40: 1761840.9
A41: 38 | B41: 莲花新村 | C41: 2 | D41: 603 | E41: 122.2 | F41: 26 | G41: 16.26 | K41: 住宅 | L41: 1919964 | M41: 1727967.6
A42: 39 | B42: 莲花新村 | C42: 2 | D42: 701 | E42: 119.07 | F42: 21 | G42: 12.65 | J42: 26.41 | K42: 住宅 | L42: 2023761 | M42: 1821384.9
A43: 40 | B43: 莲花新村 | C43: 2 | D43: 703 | E43: 119.07 | F43: 27 | G43: 12.65 | J43: 40.5 | K43: 住宅 | L43: 2049670 | M43: 1844703
A44: 41 | B44: 东市河小区 | C44: 5 | D44: 604 | E44: 120.8 | F44: 14 | G44: 14.9 | J44: 32.41 | K44: 住宅 | L44: 2250284 | M44: 2025255.6
A45: 42 | B45: 健康巷 | C45: 25 | E45: 249.31 | K45: 联体住宅 | L45: 6015850 | M45: 5414265
A46: 43 | B46: 金山苑四区 | C46: 12 | D46: 502 | E46: 88.49 | F46: 26 | G46: 11.58 | K46: 住宅 | L46: 1554429 | M46: 1398986.1
A47: 44 | B47: 金山苑四区 | C47: 15 | D47: 501 | E47: 79.25 | F47: 30 | G47: 16.41 | K47: 住宅 | L47: 1407216 | M47: 1266494.4
A48: 45 | B48: 金山苑四区 | C48: 15 | D48: 502 | E48: 79.25 | F48: 25 | G48: 16.41 | K48: 住宅 | L48: 1379875 | M48: 1241887.5
A49: 46 | B49: 金山苑四区 | C49: 15 | D49: 503 | E49: 79.25 | F49: 24 | G49: 16.41 | K49: 住宅 | L49: 1379875 | M49: 1241887.5
A50: 47 | B50: 金山苑四区 | C50: 15 | D50: 504 | E50: 79.25 | F50: 19 | G50: 16.41 | K50: 住宅 | L50: 1379875 | M50: 1241887.5
A51: 48 | B51: 锦荷佳苑 | C51: 9 | D51: 605 | E51: 86.93 | F51: 21 | G51: 10.2 | J51: 55.46 | K51: 住宅 | L51: 1827180 | M51: 1644462
A52: 49 | B52: 锦荷佳苑 | C52: 46 | D52: 201 | E52: 119.65 | F52: 12 | G52: 16.62 | K52: 住宅 | L52: 2196925 | M52: 1977232.5
A53: 50 | B53: 金桂家园一期 | C53: 2 | D53: 101 | E53: 196.36 | K53: 跃层住宅 | L53: 3734178 | M53: 3360760.2
A54: 51 | B54: 金桂家园一期 | C54: 2 | D54: 103 | E54: 192.72 | K54: 跃层住宅 | L54: 3664956 | M54: 3298460.4
A55: 52 | B55: 金桂家园一期 | C55: 2 | D55: 301 | E55: 196.36 | K55: 跃层住宅 | L55: 3771487 | M55: 3394338.3
A56: 53 | B56: 金桂家园一期 | C56: 2 | D56: 303 | E56: 192.72 | K56: 跃层住宅 | L56: 3701573 | M56: 3331415.7
A57: 54 | B57: 金桂家园一期 | C57: 2 | D57: 1103 | E57: 192.72 | K57: 跃层住宅 | L57: 3848233 | M57: 3463409.7
A58: 55 | B58: 金桂家园一期 | C58: 2 | D58: 1301 | E58: 196.36 | K58: 跃层住宅 | L58: 3920916 | M58: 3528824.4
A59: 56 | B59: 金桂家园一期 | C59: 2 | D59: 1303 | E59: 192.72 | K59: 跃层住宅 | L59: 3848233 | M59: 3463409.7
A60: 57 | B60: 福甸家园 | C60: 1 | D60: 502 | E60: 82.04 | F60: 5 | G60: 15.46 | K60: 住宅 | L60: 1597984 | M60: 1438185.6
A61: 58 | B61: 福甸家园 | C61: 1 | D61: 503 | E61: 82.04 | F61: 24 | G61: 13.11 | K61: 住宅 | L61: 1592109 | M61: 1432898.1
A62: 59 | B62: 福甸家园 | C62: 1 | D62: 504 | E62: 82.04 | F62: 10 | G62: 15.46 | K62: 住宅 | L62: 1597984 | M62: 1438185.6
A63: 60 | B63: 福甸家园 | C63: 1 | D63: 505 | E63: 82.04 | F63: 20 | G63: 11.78 | K63: 住宅 | L63: 1588784 | M63: 1429905.6
A64: 61 | B64: 福甸家园 | C64: 1 | D64: 506 | E64: 82.04 | F64: 17 | G64: 13.11 | K64: 住宅 | L64: 1600313 | M64: 1440281.7
A65: 62 | B65: 福甸家园 | C65: 4 | D65: 204 | E65: 106.54 | F65: 14 | G65: 11.23 | K65: 住宅 | L65: 2106351 | M65: =L65*90% -> 1895715.9
A66: 63 | B66: 福甸家园 | C66: 7 | D66: 502 | E66: 82.46 | F66: 7 | G66: 13.09 | K66: 住宅 | L66: 1608288 | M66: 1447459.2
A67: 64 | B67: 福甸家园 | C67: 9 | D67: 501 | E67: 81.95 | F67: 28 | G67: 13.11 | K67: 住宅 | L67: 1606789 | M67: 1446110.1
A68: 65 | B68: 福甸家园 | C68: 9 | D68: 503 | E68: 82.04 | F68: 23 | G68: 13.11 | K68: 住宅 | L68: 1592109 | M68: 1432898.1
A69: 66 | B69: 福甸家园 | C69: 11 | D69: 502 | E69: 82.17 | F69: 16 | G69: 11.49 | K69: 住宅 | L69: 1590530 | M69: 1431477
A70: 67 | B70: 福甸家园 | C70: 11 | D70: 503 | E70: 82.17 | F70: 15 | G70: 11.49 | K70: 住宅 | L70: 1590530 | M70: 1431477
A71: 68 | B71: 福甸家园 | C71: 11 | D71: 504 | E71: 82.08 | F71: 12 | G71: 13.1 | K71: 住宅 | L71: 1601053 | M71: 1440947.7
A72: 69 | B72: 西门大街115号 | C72: 1 | D72: 402 | E72: 57.37 | F72: 一体销售 | K72: 住宅 | L72: 1055723 | M72: 950150.7
B73: 西门大街115号 | D73: 502 | E73: 57.37 | L73: 1055723 | M73: 950150.7
A74: 70 | B74: 青龙巷 | C74: 2 | D74: 201 | E74: 73.63 | F74: 8（1-1号） | G74: 7.4 | K74: 住宅 | L74: 1731576 | M74: 1558418.4
A75: 71 | B75: 青龙巷 | D75: 202 | E75: 73.63 | F75: 9（1-1号） | G75: 7.4 | K75: 住宅 | L75: 1716850 | M75: 1545165
A76: 72 | B76: 枫泾新村四区 | C76: 7 | D76: 502 | E76: 79.06 | F76: 9 | G76: 9.24 | K76: 住宅 | L76: 1684783 | M76: 1516304.7
A77: 73 | B77: 枫泾新村四区 | C77: 7 | D77: 506 | E77: 79.06 | F77: 29 | G77: 9.24 | K77: 住宅 | L77: 1692689 | M77: 1523420.1
A78: 74 | B78: 枫泾新村四区 | C78: 10 | D78: 504 | E78: 87.49 | F78: 19 | G78: 9.81 | K78: 住宅 | L78: 1872139 | M78: 1684925.1
A79: 75 | B79: 枫泾新村四区 | C79: 13 | D79: 504 | E79: 88.02 | F79: 19 | G79: 9.76 | K79: 住宅 | L79: 1883206 | M79: 1694885.4
A80: 76 | B80: 枫泾新村四区 | C80: 15 | D80: 504 | E80: 88.02 | F80: 19 | G80: 9.76 | K80: 住宅 | L80: 1883206 | M80: 1694885.4
A81: 77 | B81: 枫泾新村四区 | C81: 15 | D81: 502 | E81: 105.24 | F81: 10 | G81: 9.37 | K81: 住宅 | L81: 2235359 | M81: 2011823.1
A82: 78 | B82: 枫泾新村四区 | C82: 18 | D82: 504 | E82: 91.69 | F82: 14 | G82: 10.31 | K82: 住宅 | L82: 1962084 | M82: 1765875.6
A83: 79 | B83: 枫泾新村四区 | C83: 20 | D83: 102 | E83: 245.38 | K83: 跃层住宅 | L83: 5280087 | M83: 4752078.3
A84: 80 | B84: 鸭潭头小区 | C84: 6 | D84: 502 | E84: 84.78 | F84: 17 | G84: 12.33 | K84: 住宅 | L84: 1726086 | M84: 1553477.4
A85: 81 | B85: 鸭潭头小区 | C85: 7-1 | E85: 225.35 | J85: 65.73 | K85: 联体住宅 | L85: 6111516 | M85: 5500364.4
A86: 82 | B86: 锁澜北路26号 | C86: 2 | D86: 501 | E86: 85.98 | F86: 20 | G86: 9.42 | K86: 住宅 | L86: 1760002 | M86: 1584001.8
A87: 83 | B87: 锁澜北路26号 | C87: 2 | D87: 502 | E87: 85.98 | F87: 15 | G87: 18.38 | K87: 住宅 | L87: 1765206 | M87: 1588685.4
A88: 84 | B88: 锁澜北路26号 | C88: 2 | D88: 105 | E88: 222.31 | J88: 47.41 | K88: 联体住宅 | L88: 4545673 | M88: 4091105.7
A89: 85 | B89: 枫林苑 | C89: 2 | D89: 206 | E89: 75.24 | F89: 24 | G89: 19.98 | K89: 住宅 | L89: 1593499 | M89: 1434149.1
A90: 86 | B90: 嘉和居 | C90: 1 | D90: 306 | E90: 162.79 | J90: 24.78 | K90: 跃层住宅 | L90: 3931662 | M90: 3538495.8
A91: 合计 | E91: =SUM(E4:E90) -> 11808.15 | G91: =SUM(G4:G90) -> 832.58 | I91: =SUM(I4:I90) -> 278.24 | J91: =SUM(J4:J90) -> 706.69 | L91: =SUM(L4:L90) -> 208053163 | M91: =SUM(M4:M90) -> 187247846.7
